[Event "11th LCC FIDE Open 2019"]
[Site "London"]
[Date "2019.11.30"]
[Round "3.50"]
[White "Tanmay Chopra"]
[Black "Varsha Ramesh"]
[Result "1-0"]
[ECO "D40"]
[WhiteElo "2082"]
[BlackElo "1669"]
[Annotator "NA RC"]
[PlyCount "99"]
[EventDate "2019.11.29"]
[EventType "swiss"]
[EventCountry "ENG"]
[SourceTitle "playchess.com"]
[Source "ChessBase"]
[SourceQuality "1"]
[TimeControl "40/5400+30:1800+30"]

1. Nf3 {[%emt 0:00:23]} Nf6 {[%emt 0:03:28]} 2. c4 {[%emt 0:00:00]} c5 {[%emt 0:00:20]} 3. Nc3 {[%emt 0:00:00]} Nc6 {[%emt 0:00:20]} 4. e3 {[%emt 0:02:11]} e6 {[%emt 0:00:45]} 5. d4 {[%emt 0:00:13]} d5 {[%emt 0:01:40]} 6. a3 {[%emt 0:00:01]} Be7 {[%emt 0:00:43]} 7. dxc5 {[%emt 0:01:15]} Bxc5 {[%emt 0:00:37]} 8. b4 {[%emt 0:00:41]} Be7 {[%emt 0:00:30]} 9. Be2 {[%emt 0:02:51]} O-O {[%emt 0:00:31]} 10. cxd5 {[%emt 0:03:53]} exd5 {[%emt 0:00:20]} 11. O-O {[%emt 0:00:03]} Be6 {[%emt 0:02:58]} 12. Bb2 {[%emt 0:00:39]} h6 {[%emt 0:00:38]} 13. Nd4 {[%emt 0:03:30]} Nxd4 {[%emt 0:00:28]} 14. Qxd4 {[%emt 0:00:02]} b6 {[%emt 0:03:15]} 15. Rfd1 {[%emt 0:03:29]} Qc7 {[%emt 0:03:53]} 16. Ba6 {[%emt 0:06:04]} Ng4 {[%emt 0:08:57]} 17. Qxg7+ {[%emt 0:06:28]} Kxg7 {[%emt 0:00:08]} 18. Nxd5+ {[%emt 0:00:03]} Qe5 {[%emt 0:01:45]} 19. Bxe5+ {[%emt 0:00:03]} Nxe5 {[%emt 0:00:08]} 20. Nxe7 {[%emt 0:00:03]} Kh7 {[%emt 0:01:01]} 21. Nd5 {[%emt 0:01:58]} Bf5 {[%emt 0:01:22]} 22. f3 {[%emt 0:00:32]} Kh8 {[%emt 0:00:16]} 23. e4 {[%emt 0:00:10]} Bd7 {[%emt 0:00:29]} 24. f4 {[%emt 0:01:26]} Ng6 {[%emt 0:00:16]} 25. g3 {[%emt 0:00:34]} Bg4 {[%emt 0:00:21]} 26. Re1 {[%emt 0:03:33]} Rad8 {[%emt 0:00:10]} 27. Nf6 {[%emt 0:00:19]} Bh3 {[%emt 0:00:36]} 28. Red1 {[%emt 0:00:36]} Kg7 {[%emt 0:00:14]} 29. e5 {[%emt 0:00:20]} Be6 {[%emt 0:00:38]} 30. Kf2 {[%emt 0:00:22]} Ne7 {[%emt 0:00:13]} 31. Rac1 {[%emt 0:02:25]} Nf5 {[%emt 0:00:11]} 32. Bd3 {[%emt 0:01:41]} Bb3 {[%emt 0:00:36]} 33. Rd2 {[%emt 0:00:25]} Nd4 {[%emt 0:00:10]} 34. Bc4 {[%emt 0:01:36]} Bxc4 {[%emt 0:00:44]} 35. Rxc4 {[%emt 0:00:02]} Ne6 {[%emt 0:00:28]} 36. Rxd8 {[%emt 0:01:12]} Rxd8 {[%emt 0:00:03]} 37. f5 {[%emt 0:00:17]} Ng5 {[%emt 0:00:11]} 38. h4 {[%emt 0:00:18]} Nh7 {[%emt 0:00:11]} 39. Nxh7 {[%emt 0:01:25]} Kxh7 {[%emt 0:00:03]} 40. Rc7 {[%emt 0:00:09]} Kg8 {[%emt 0:00:07]} 41. Ke3 {[%emt 0:30:13]} a5 {[%emt 0:30:10]} 42. bxa5 {[%emt 0:01:17]} bxa5 {[%emt 0:00:02]} 43. Rc5 {[%emt 0:00:01]} Ra8 {[%emt 0:00:17]} 44. a4 {[%emt 0:00:07]} Kf8 {[%emt 0:00:12]} 45. Ke4 {[%emt 0:00:10]} Ke7 {[%emt 0:00:09]} 46. Rc7+ {[%emt 0:00:03]} Kf8 {[%emt 0:00:09]} 47. f6 {[%emt 0:00:18]} Rb8 {[%emt 0:00:10]} 48. Kf5 {[%emt 0:00:21]} Ra8 {[%emt 0:00:08]} 49. g4 {[%emt 0:00:11]} Rb8 {[%emt 0:00:05]} 50. g5 {[%emt 0:01:37]} 1-0

[Event "11th LCC FIDE Open 2019"]
[Site "London"]
[Date "2019.11.30"]
[Round "3.51"]
[White "Coote, Trevor D"]
[Black "Nergard, Ole-Kristian"]
[Result "1-0"]
[ECO "A43"]
[WhiteElo "2075"]
[BlackElo "1639"]
[Annotator "NA RC"]
[PlyCount "74"]
[EventDate "2019.11.29"]
[EventType "swiss"]
[EventCountry "ENG"]
[SourceTitle "playchess.com"]
[Source "ChessBase"]
[SourceQuality "1"]
[TimeControl "40/5400+30:1800+30"]

1. d4 {[%emt 0:02:28]} Nf6 {[%emt 0:04:16]} 2. Nc3 {[%emt 0:00:27]} c5 {[%emt 0:02:57]} 3. d5 {[%emt 0:00:02]} e6 {[%emt 0:05:38]} 4. e4 {[%emt 0:00:03]} exd5 {[%emt 0:00:47]} 5. exd5 {[%emt 0:00:01]} d6 {[%emt 0:00:52]} 6. Nf3 {[%emt 0:01:43]} Bg4 {[%emt 0:00:56]} 7. h3 {[%emt 0:11:58]} Bxf3 {[%emt 0:00:32]} 8. Qxf3 {[%emt 0:00:36]} Nbd7 {[%emt 0:01:02]} 9. Be2 {[%emt 0:01:56]} Be7 {[%emt 0:01:10]} 10. O-O {[%emt 0:00:26]} O-O {[%emt 0:00:23]} 11. Qg3 {[%emt 0:03:09]} Re8 {[%emt 0:01:04]} 12. a4 {[%emt 0:00:38]} a6 {[%emt 0:01:00]} 13. f4 {[%emt 0:07:12]} Qc7 {[%emt 0:02:35]} 14. Qf3 {[%emt 0:04:05]} h6 {[%emt 0:12:30]} 15. g4 {[%emt 0:04:06]} Nh7 {[%emt 0:01:44]} 16. Ne4 {[%emt 0:11:28]} f5 {[%emt 0:08:44]} 17. Ng3 {[%emt 0:01:55]} fxg4 {[%emt 0:01:55]} 18. hxg4 {[%emt 0:02:39]} c4 {[%emt 0:10:23]} 19. Nf5 {[%emt 0:06:21]} Bf6 {[%emt 0:03:15]} 20. c3 {[%emt 0:01:12]} b5 {[%emt 0:03:52]} 21. axb5 {[%emt 0:11:02]} axb5 {[%emt 0:00:27]} 22. Be3 {[%emt 0:00:09]} Nc5 {[%emt 0:08:27]} 23. Rxa8 {[%emt 0:10:42]} Rxa8 {[%emt 0:00:03]} 24. Qg2 {[%emt 0:00:59]} Qd8 {[%emt 0:07:10]} 25. Bxc5 {[%emt 0:09:58]} dxc5 {[%emt 0:00:04]} 26. d6 {[%emt 0:00:42]} Kh8 {[%emt 0:04:51]} 27. Qd5 {[%emt 0:00:42]} Rc8 {[%emt 0:00:54]} 28. Ra1 {[%emt 0:02:14]} Nf8 {[%emt 0:03:53]} 29. Ra7 {[%emt 0:02:14]} Qe8 {[%emt 0:09:31]} 30. d7 {[%emt 0:01:58]} Nxd7 {[%emt 0:01:19]} 31. Qxd7 {[%emt 0:00:19]} Rd8 {[%emt 0:00:40]} 32. Qxe8+ {[%emt 0:00:08]} Rxe8 {[%emt 0:00:02]} 33. Kf2 {[%emt 0:00:07]} Rd8 {[%emt 0:02:18]} 34. Ke3 {[%emt 0:01:22]} Re8+ {[%emt 0:00:05]} 35. Kf3 {[%emt 0:01:03]} Rd8 {[%emt 0:00:47]} 36. Rb7 {[%emt 0:00:33]} b4 {[%emt 0:00:46]} 37. cxb4 {[%emt 0:00:22]} Rd2 {[%emt 0:03:33]} 1-0

[Event "11th LCC FIDE Open 2019"]
[Site "London"]
[Date "2019.11.30"]
[Round "3.53"]
[White "Zymberi, Astrit"]
[Black "Lovell, William Pm"]
[Result "1/2-1/2"]
[ECO "D20"]
[WhiteElo "2148"]
[BlackElo "1843"]
[Annotator "ChessBase"]
[PlyCount "74"]
[EventDate "2019.11.29"]
[EventType "swiss"]
[EventCountry "ENG"]
[SourceTitle "playchess.com"]
[Source "ChessBase"]
[SourceQuality "1"]
[TimeControl "40/5400+30:1800+30"]

1. d4 {[%emt 0:12:47]} d5 {[%emt 0:00:05]} 2. c4 {[%emt 0:00:09]} dxc4 {[%emt 0:00:05]} 3. e4 {[%emt 0:00:49]} e5 {[%emt 0:00:05]} 4. Nf3 {[%emt 0:00:18]} Bb4+ {[%emt 0:00:12]} 5. Nc3 {[%emt 0:02:39]} exd4 {[%emt 0:00:40]} 6. Nxd4 {[%emt 0:00:51]} Bxc3+ {[%emt 0:02:42]} 7. bxc3 {[%emt 0:00:08]} Qe7 {[%emt 0:07:55]} 8. f3 {[%emt 0:02:26]} Nf6 {[%emt 0:02:41]} 9. Bxc4 {[%emt 0:02:19]} O-O {[%emt 0:00:36]} 10. Qb3 {[%emt 0:04:39]} c5 {[%emt 0:04:28]} 11. Qa3 {[%emt 0:13:35]} Nxe4 {[%emt 0:07:55]} 12. O-O {[%emt 0:04:12]} Nxc3 {[%emt 0:13:48]} 13. Bd2 {[%emt 0:09:06]} Qe5 {[%emt 0:01:57]} 14. Nb3 {[%emt 0:06:53]} Ne2+ {[%emt 0:03:13]} 15. Kh1 {[%emt 0:06:29]} Nf4 {[%emt 0:02:58]} 16. Rfe1 {[%emt 0:04:07]} Qf6 {[%emt 0:02:10]} 17. Nxc5 {[%emt 0:04:29]} Nc6 {[%emt 0:21:34]} 18. Ne4 {[%emt 0:06:39]} Qd4 {[%emt 0:06:44]} 19. Bb3 {[%emt 0:08:03]} Nd3 {[%emt 0:06:49]} 20. Be3 {[%emt 0:05:10]} Qb4 {[%emt 0:01:02]} 21. Bxf7+ {[%emt 0:01:16]} Rxf7 {[%emt 0:01:00]} 22. Qxd3 {[%emt 0:00:11]} Bf5 {[%emt 0:01:28]} 23. Bd2 {[%emt 0:01:57]} Bxe4 {[%emt 0:01:04]} 24. Rxe4 {[%emt 0:00:45]} Qb6 {[%emt 0:01:14]} 25. Rae1 {[%emt 0:00:59]} Qd8 {[%emt 0:02:08]} 26. Qc4 {[%emt 0:02:14]} Qd7 {[%emt 0:01:51]} 27. Bc3 {[%emt 0:01:48]} Kh8 {[%emt 0:01:34]} 28. Qe2 {[%emt 0:01:25]} Rff8 {[%emt 0:01:04]} 29. Qb2 {[%emt 0:01:14]} Rad8 {[%emt 0:01:25]} 30. h4 {[%emt 0:03:50]} Rf7 {[%emt 0:02:03]} 31. h5 {[%emt 0:01:05]} h6 {[%emt 0:00:01]} 32. Re6 {[%emt 0:01:29]} Kh7 {[%emt 0:00:38]} 33. Rg6 {[%emt 0:00:31]} Qd5 {[%emt 0:01:11]} 34. Rxg7+ {[%emt 0:01:03]} Rxg7 {[%emt 0:00:01]} 35. Bxg7 Qxh5+ {[%emt 0:00:15]} 36. Kg1 {[%emt 0:00:03]} Qc5+ {[%emt 0:00:08]} 37. Kf1 {[%emt 0:02:11]} Qc4+ {[%emt 0:00:52]} 1/2-1/2

[Event "11th LCC FIDE Open 2019"]
[Site "London"]
[Date "2019.11.30"]
[Round "3.54"]
[White "Mugalu, Hassan"]
[Black "Rushbrooke, Remy"]
[Result "1-0"]
[ECO "A47"]
[WhiteElo "1836"]
[BlackElo "2053"]
[Annotator "NA RC"]
[PlyCount "117"]
[EventDate "2019.11.29"]
[EventType "swiss"]
[EventCountry "ENG"]
[SourceTitle "playchess.com"]
[Source "ChessBase"]
[SourceQuality "1"]
[TimeControl "40/5400+30:1800+30"]

1. d4 {[%emt 3:33:52]} Nf6 {[%emt 0:00:10]} 2. Nf3 {[%emt 0:00:46]} e6 {[%emt 0:00:13]} 3. Bf4 {[%emt 0:00:35]} c5 {[%emt 0:00:19]} 4. c3 {[%emt 0:00:33]} b6 {[%emt 0:00:08]} 5. e3 {[%emt 0:00:51]} Bb7 {[%emt 0:00:04]} 6. Nbd2 {[%emt 0:00:42]} Be7 {[%emt 0:00:07]} 7. Bd3 {[%emt 0:02:01]} O-O {[%emt 0:00:08]} 8. Rc1 {[%emt 0:00:43] A47: 1 d4 Nf6 2 Nf3 b6: Torre, London and Colle Systems} (8. Qe2 Nc6 9. a3 Rc8 10. e4 d6 11. O-O Qc7 12. h3 e5 13. dxe5 Nxe5 14. Nxe5 dxe5 15. Bh2 Rcd8 {1-0 (29) Radjabov,T (2784)-Tomashevsky,E (2738) Moscow 2012}) 8... cxd4 {[%emt 0:00:29]} 9. cxd4 {[%emt 0:01:09]} d6 {[%emt 0:02:13]} 10. Bb1 {[%emt 0:01:34]} Nh5 $146 {[%emt 0:05:17]} ({Predecessor:} 10... Nbd7 11. h3 Ba6 12. a3 Re8 13. Nc4 Qb8 14. Qa4 Bb7 15. Ncd2 {1-0 (61) Kubiniok,S (1458)-Lipus,D (1490) Karvina 2017}) 11. Qc2 {[%emt 0:07:36]} f5 {[%emt 0:00:45]} 12. Bg3 {[%emt 0:04:18]} Nd7 {[%emt 0:01:02]} 13. Qc7 {[%emt 0:01:07]} Rc8 {[%emt 0:01:40]} 14. Qxd8 {[%emt 0:02:16]} Rxc1+ {[%emt 0:00:23]} 15. Ke2 {[%emt 0:00:07]} Nxg3+ {[%emt 0:00:21]} 16. hxg3 {[%emt 0:00:28]} Bxd8 {[%emt 0:03:18]} 17. Rxc1 {[%emt 0:00:14]} e5 {[%emt 0:00:30]} 18. Ke1 {[%emt 0:04:04]} e4 {[%emt 0:08:24]} 19. Ng1 {[%emt 0:01:59]} Nf6 {[%emt 0:00:05]} 20. Ne2 {[%emt 0:01:03]} Rf7 {[%emt 0:01:25]} 21. a3 {[%emt 0:03:00]} Rc7 {[%emt 0:00:30]} 22. Rxc7 {[%emt 0:00:45]} Bxc7 {[%emt 0:00:04]} 23. Nf4 {[%emt 0:00:14]} Kf7 {[%emt 0:01:54]} 24. Ba2+ {[%emt 0:00:19]} d5 {[%emt 0:00:06]} 25. Ne2 {[%emt 0:04:05]} g5 {[%emt 0:01:23]} 26. Nc3 {[%emt 0:00:36]} Ke6 {[%emt 0:01:29]} 27. Bb3 {[%emt 0:05:31]} Ng4 {[%emt 0:04:30]} 28. Nf1 {[%emt 0:04:14]} Nf6 {[%emt 0:03:37]} 29. f3 {[%emt 0:03:38]} Ba6 {[%emt 0:11:29]} 30. f4 {[%emt 0:08:08]} Bc4 {[%emt 0:05:11]} 31. Bxc4 {[%emt 0:01:59]} dxc4 {[%emt 0:00:04]} 32. Nd2 {[%emt 0:00:27]} Nd5 {[%emt 0:01:14]} 33. Nxc4 {[%emt 0:00:31]} Nxc3 {[%emt 0:00:28]} 34. bxc3 {[%emt 0:00:22]} b5 {[%emt 0:01:09]} 35. Ne5 {[%emt 0:02:26]} Kd5 {[%emt 0:01:16]} 36. Kd2 {[%emt 0:00:59]} Bd6 {[%emt 0:08:25]} 37. Nf7 {[%emt 0:03:13]} Bxa3 {[%emt 0:02:15]} 38. Nxg5 {[%emt 0:00:46]} h6 {[%emt 0:00:42]} 39. Nf7 {[%emt 0:00:25]} Bf8 {[%emt 0:00:30]} 40. Ne5 {[%emt 0:00:31]} a5 {[%emt 0:00:07]} 41. Kc2 {[%emt 0:00:36]} a4 {[%emt 0:00:43]} 42. Kb2 {[%emt 0:02:00]} h5 {[%emt 0:03:00]} 43. Kc2 {[%emt 0:02:39]} Bd6 {[%emt 0:03:06]} 44. Nd7 {[%emt 0:01:26]} Be7 {[%emt 0:00:44]} 45. Kb2 {[%emt 0:01:14]} Kc4 {[%emt 0:02:50]} 46. Ne5+ {[%emt 0:00:46]} Kd5 {[%emt 0:00:05]} 47. Ng6 {[%emt 0:01:01]} Bd6 {[%emt 0:01:26]} 48. Nh4 {[%emt 0:01:07]} Ke6 {[%emt 0:00:33]} 49. Ng6 {[%emt 0:03:07]} Kd5 {[%emt 0:00:04]} 50. Ne5 {[%emt 0:01:13]} Be7 {[%emt 0:00:09]} 51. Kc2 {[%emt 0:01:11]} Bf8 {[%emt 0:03:18]} 52. Ng6 {[%emt 0:03:58]} Bd6 {[%emt 0:00:09]} 53. Ne5 {[%emt 0:03:07]} Ba3 {[%emt 0:02:06]} 54. Ng6 {[%emt 0:04:57]} b4 {[%emt 0:06:45]} 55. cxb4 {[%emt 0:05:14]} Bxb4 {[%emt 0:00:06]} 56. Nh4 {[%emt 0:00:21]} Kc4 {[%emt 0:01:53]} 57. Kb2 {[%emt 0:01:25]} Bf8 $11 {[%emt 0:03:43]} 58. Nxf5 {[%emt 0:00:21]} Kd3 {[%emt 0:00:24]} 59. d5 {[%emt 0:00:30]} 1-0